[Event "1000GM 0003 GM Norm 2022"]
[Site "Saint Louis"]
[Date "2022.09.23"]
[Round "5.1"]
[White "Mardov, Dimitar"]
[Black "Raja Harshit"]
[Result "1/2-1/2"]
[ECO "B90"]
[WhiteElo "2414"]
[BlackElo "2459"]
[Annotator "TA"]
[PlyCount "74"]
[EventDate "2022.09.21"]
[EventType "tourn"]
[EventCountry "USA"]
[SourceTitle "playchess.com"]
[Source "ChessBase"]
[SourceQuality "1"]
[TimeControl "5400+30"]

{[%evp 9,74,16,18,-2,1,0,3,5,10,21,27,20,28,15,35,41,61,0,0,0,0,0,0,0,0,0,0,0,16,-88,50,0,0,-19,-23,-225,-241,-204,-111,-101,-102,-91,0,-11,-33,-399,0,0,0,0,0,0,216,217,288,0,0,0,264,0,0,-884,-22,-843,-840,-784,732]} 1. e4 {[%emt 0:00:02]} c5 {[%emt 0:07:05]} 2. Nf3 {[%emt 0:00:06]} d6 {[%emt 0:00:05]} 3. d4 {[%emt 0:00:03]} cxd4 {[%emt 0:00:09]} 4. Nxd4 {[%emt 0:00:04]} Nf6 {[%emt 0:00:07]} 5. Nc3 {[%emt 0:00:04]} a6 {[%emt 0:00:06]} 6. h4 {[%emt 0:00:10] B90: Sicilian Najdorf: Unusual White 6th moves, 6 Be3 Ng4 and 6 Be3 e5.} e5 {[%emt 0:01:51]} 7. Nb3 {[%emt 0:00:10]} Be7 {[%emt 0:03:16]} 8. Be2 {[%emt 0:00:13] The position is equal.} b5 {[%emt 0:05:45]} 9. a4 {[%emt 0:00:22]} b4 {[%emt 0:02:37]} 10. Nd5 {[%emt 0:00:08]} Bb7 {[%emt 0:01:10] [#]} 11. a5 $146 {[%emt 0:17:17]} ({Predecessor:} 11. Nxe7 Qxe7 12. f3 d5 13. exd5 Bxd5 14. Bg5 Bxb3 15. cxb3 Nc6 16. O-O O-O 17. Rc1 {1-0 (55) Kevlishvili,R (2483)-Bok,B (2640) Columbia 2019}) 11... Nxe4 {[%emt 0:09:20]} 12. Bf3 {[%emt 0:08:39]} f5 {[%emt 0:01:29]} 13. Bxe4 {[%emt 0:04:05]} (13. g4 $1 $14 Qc8 14. Nb6) 13... fxe4 $11 {[%emt 0:00:07]} 14. Bg5 {[%emt 0:12:23]} Bxg5 {[%emt 0:05:30]} 15. hxg5 {[%emt 0:01:17]} Qxg5 {[%emt 0:02:10]} 16. Nc7+ {[%emt 0:03:47] Pair of Knights!} Ke7 {[%emt 0:00:57]} 17. Qe2 {[%emt 0:09:54] Inhibits e3.} Nd7 {[%emt 0:08:15] ...Raf8 is the strong threat.} (17... Qxg2 18. O-O-O Qg6 19. Kb1 $16) 18. Nxa8 {[%emt 0:03:43]} Rxa8 {[%emt 0:00:04]} 19. Qe3 {[%emt 0:05:07]} (19. Qd2 $11 {keeps the balance.} Qxd2+ 20. Nxd2) 19... Qg4 {[%emt 0:04:51]} (19... Qxg2 20. O-O-O Qf3 21. Qd2 $14) (19... Qxe3+ $1 $17 20. fxe3 Nf6) 20. Rxh7 {[%emt 0:03:31]} (20. Rh3 $1 $14 Kf7 21. Rg3) 20... Rc8 $1 {[%emt 0:04:09]} 21. Qh6 {[%emt 0:02:03]} Kf7 {[%emt 0:01:11] Hoping for ...Nf6.} 22. Qd2 $2 {[%emt 0:06:08]} (22. Qh3 $1 $11 Qxh3 23. Rxh3) 22... Nf6 $1 $19 {[%emt 0:05:36]} 23. Rh2 {[%emt 0:03:23]} e3 {[%emt 0:10:12]} ({Black should play} 23... Bd5 $1 $19 {And now ...Bc4 would win.} 24. g3 Qf5) 24. Qxe3 $17 {[%emt 0:00:24]} Rxc2 {[%emt 0:00:29]} 25. Rc1 {[%emt 0:02:45]} Nd5 {[%emt 0:07:50]} ({Black should try} 25... Rxb2 $17 {Strongly threatening ...Nd5.} 26. Nd2 (26. Rc7+ $2 Kg8 $19) 26... Ke6) 26. Qd3 {[%emt 0:01:49]} Rxb2 {[%emt 0:00:37]} 27. Nd2 {[%emt 0:02:18][%mdl 8192] Prevents e4.} (27. Rc4 $15 Qd7 28. Rh8) 27... Nc3 $2 {[%emt 0:06:29]} (27... Qf4 28. g3 Qg5 29. Rh8 $16) (27... Nf4 $1 $19 {[%cal Rf4d3]} 28. Qc4+ (28. Rc7+ $2 Ke6 $19) 28... d5 29. Qc7+ Ke6) 28. Qc4+ $11 {[%emt 0:04:51]} Qe6 {[%emt 0:03:10]} 29. Rh8 {[%emt 0:01:43][%cal Oh8f8] aiming for Rf8+!} Bd5 {[%emt 0:03:13]} (29... Bxg2 $2 30. Rf8+ $3 {[%mdl 512]} Kxf8 31. Qxe6 $18) 30. Qh4 {[%emt 0:01:19]} Qg6 {[%emt 0:05:38]} (30... Bxg2 $2 31. Qh5+ Qg6 32. Rf8+ $3 {[%mdl 512]} Kxf8 33. Qxg6 $18) (30... Bc6 $1 $11 {and Black stays safe.}) 31. Qd8 $18 {[%emt 0:02:36][%mdl 1024] White has strong compensation.} Qe6 {[%emt 0:00:04] Prevents Qd7+.} (31... Qxg2 $2 32. Qd7+ Kg6 33. Qxd6+ Kg5 34. Qxe5+ Kg6 35. Qd6+ Kg5 36. f4+ Kg4 37. Qg6+ Kxf4 38. Rf8+ Ke5 39. Qxg2 Bxg2 40. Nc4+ Ke4 41. Nxb2 $18) 32. Qh4 {[%emt 0:00:27] Black must now prevent Qh5+.} Qg6 $40 {[%emt 0:00:21][%mdl 128] Black has some attack.} (32... Bxg2 $2 33. Qh5+ Qg6 34. Rf8+ $3 {[%mdl 512]} Kxf8 35. Qxg6 $18) 33. Qd8 {[%emt 0:00:11]} Qe6 {[%emt 0:00:07] Prevents Qd7+.} (33... Qxg2 $2 34. Qd7+ Kg6 35. Qxd6+ Kg5 36. Qxe5+ Kg6 37. Qd6+ Kg5 38. f4+ Kg4 39. Qg6+ Kxf4 40. Rf8+ Ke5 41. Qxg2 Bxg2 42. Nc4+ Kd4 43. Nxb2 $18) (33... Qg4 $2 34. Qf8+ Kg6 35. Qxd6+ Qe6 36. Qxe6+ Bxe6 37. Ra8 $18) 34. Qg5 $2 {[%emt 0:00:54]} (34. Nf3 $18 {Rf8+ would kill now.} Bxf3 35. gxf3 (35. Qf8+ Kg6 $11)) 34... Bc6 $1 $11 {[%emt 0:01:53]} (34... Qf6 35. Qh5+ Ke6 36. Qg4+ (36. Qe8+ Qe7 $16) 36... Kf7 37. Qh5+ Ke6 38. Qg4+ (38. Qe8+ Qe7 $16) 38... Kf7 39. Qh5+ $16) 35. Nc4 $2 {[%emt 0:05:03][%mdl 8192]} Re2+ $19 {[%emt 0:00:07]} ({Resist} 35... Qxc4 36. Qf5+ Ke7 37. Qf8+ Ke6 38. Qg8+ Ke7 39. Qxc4 $18) 36. Kf1 {[#] Chess con chili.} Rxf2+ $3 {[%mdl 512]} 37. Ke1 {[%emt 0:00:04]} Rb2 $4 {[%emt 0:00:03][%mdl 40960] Weighted Error Value: White=0.72/Black=0.34. An unexpected result.} 1/2-1/2

[Event "1000GM 0003 GM Norm 2022"]
[Site "Saint Louis"]
[Date "2022.09.23"]
[Round "5.2"]
[White "Williams, Justus"]
[Black "Kretchetov, Alexandre"]
[Result "1/2-1/2"]
[ECO "C54"]
[WhiteElo "2392"]
[BlackElo "2144"]
[Annotator "TA"]
[PlyCount "110"]
[EventDate "2022.09.21"]
[EventType "tourn"]
[EventCountry "USA"]
[SourceTitle "playchess.com"]
[Source "ChessBase"]
[SourceQuality "1"]
[TimeControl "5400+30"]

{[%evp 9,110,13,18,20,22,18,17,25,24,0,0,0,-4,-11,0,-13,0,0,0,0,-14,-16,-4,0,18,8,17,0,61,0,0,0,0,-40,-39,-57,35,-73,100,95,95,59,86,87,95,-15,0,-70,98,-142,95,71,91,60,60,73,64,0,204,189,217,232,242,191,249,118,124,92,80,0,0,0,0,0,0,-130,-116,-168,-172,-886,-42,-427,0,0,0,0,216,231,209,0,0,0,0,0,0,0,0,0,0,0,0,0,0]} 1. e4 {[%emt 0:00:04]} e5 {[%emt 0:16:32]} 2. Nf3 {[%emt 0:00:17]} Nc6 {[%emt 0:00:06]} 3. Bc4 {[%emt 0:00:09]} Bc5 {[%emt 0:00:25]} 4. c3 {[%emt 0:00:19]} Nf6 {[%emt 0:00:07]} 5. d3 {[%emt 0:00:09]} a6 {[%emt 0:00:12]} 6. a4 {[%emt 0:02:08] C54: Giuoco Piano: 4 c3 Nf6, main lines with 5 d4 and 5 d3.} d6 {[%emt 0:00:11]} 7. O-O {[%emt 0:00:23]} Ba7 {[%emt 0:00:35]} 8. Re1 {[%emt 0:02:02]} h6 {[%emt 0:00:04] [#]} 9. Qb3 $146 {[%emt 0:06:30]} ({Predecessor:} 9. Nbd2 Be6 10. Bxe6 fxe6 11. b4 O-O 12. Nf1 Ne7 13. h3 Ng6 14. Ra2 Qe7 15. Be3 Bxe3 16. Rxe3 {½-½ (46) Dominguez Perez,L (2754)-Shankland,S (2720) Saint Louis 2022}) 9... O-O {[%emt 0:02:58]} 10. a5 {[%emt 0:00:34]} Ne7 {[%emt 0:05:26]} 11. Nbd2 {[%emt 0:02:40]} Ng6 {[%emt 0:01:17]} 12. d4 {[%emt 0:03:07]} Nh5 {[%emt 0:07:03]} 13. h3 {[%emt 0:05:54]} Qf6 {[%emt 0:04:41]} 14. Qd1 {[%emt 0:10:16]} Nhf4 {[%emt 0:04:06][%cal Oc8h3] aiming for ...Bxh3!} 15. Nf1 {[%emt 0:04:02]} Be6 {[%emt 0:15:50]} 16. Ne3 {[%emt 0:05:57]} h5 {[%emt 0:06:03]} (16... Nxg2 17. Kxg2 Nf4+ 18. Kh2 $16) 17. Bf1 {[%emt 0:04:07]} Rae8 {[%emt 0:05:50]} 18. Kh2 {[%emt 0:02:10]} Bc8 {[%emt 0:05:30]} (18... d5 $11 19. Nxd5 Bxd5 20. exd5 Nxd5) 19. d5 {[%emt 0:07:44]} (19. g3 $14) 19... Ne7 $11 {[%emt 0:06:13]} 20. g3 {[%emt 0:01:16]} g5 $1 {[%emt 0:03:42][%cal Of4h3,Bg7g5,Bg5g4][%mdl 32]} 21. h4 {[%emt 0:21:41]} g4 {[%emt 0:01:16]} 22. Ng5 {[%emt 0:00:30]} Nfg6 {[%emt 0:01:11]} (22... Qg7 $1 $15) 23. Qc2 {[%emt 0:01:34] [#]} (23. f3 $14 {keeps the upper hand.}) 23... Bxe3 $2 {[%emt 0:04:57]} (23... Nxh4 $1 $17 {keeps the pressure on.} 24. gxh4 Ng6) 24. Bxe3 $16 {[%emt 0:01:06]} Qg7 {[%emt 0:00:09]} 25. Bd3 {[%emt 0:03:11] White is much more active.} f5 {[%emt 0:01:30]} 26. exf5 {[%emt 0:00:43]} Nxf5 {[%emt 0:00:07]} 27. Ba7 {[%emt 0:01:10]} (27. Rad1 $16) 27... Re7 {[%emt 0:02:10][%cal Of5h4]} 28. Rad1 {[%emt 0:02:43] [#]} (28. Bxf5 $11 Bxf5 29. Qb3) 28... Kh8 $2 {[%emt 0:00:30]} (28... Ngxh4 $1 $15 {stays ahead.} 29. gxh4 Nxh4) 29. b4 $2 {[%emt 0:01:02] [#]} (29. Be3 $16) 29... Bd7 $2 {[%emt 0:01:12]} (29... Ngxh4 $1 $17 {[%mdl 512] stays on course.} 30. gxh4 Nxh4) 30. Be4 {[%emt 0:02:01]} Rf6 {[%emt 0:00:42]} 31. Ne6 {[%emt 0:00:49]} Rexe6 {[%emt 0:00:47]} 32. dxe6 {[%emt 0:00:07]} Bxe6 {[%emt 0:00:04][%cal Og6h4]} 33. Qd2 {[%emt 0:01:13]} (33. Bxb7 c6 34. Bb8 Qf7 $17) (33. Qd3 $14) 33... c6 $2 {[%emt 0:01:35]} (33... Ngxh4 $1 $11 34. gxh4 Nxh4) 34. Qg5 {[%emt 0:00:26]} d5 {[%emt 0:00:44]} 35. Qxh5+ {[%emt 0:00:53]} Kg8 {[%emt 0:00:25]} 36. Bg2 {[%emt 0:00:59]} (36. Qxg4 Nd6 37. Qh5 (37. Bxd5 $2 cxd5 38. Qg5 Nf7 $19) 37... Nxe4 38. Rxe4 dxe4 $17) 36... e4 {[%emt 0:01:16] [#]} (36... Rf7 $142 37. c4 (37. Qxg4 Nfxh4 38. Qxe6 Nxg2 $16) 37... Qf6) 37. Bc5 {[%emt 0:02:05]} (37. Bxe4 $1 $18 {is more deadly.} dxe4 38. Rd8+ (38. Qxg4 Nd4 $17) (38. Rxe4 Qf7 $16) 38... Rf8 39. Rxf8+ Nxf8 40. Rxe4) 37... Ne5 {[%emt 0:01:11]} 38. Qe8+ {[%emt 0:03:44]} Kh7 {[%emt 0:00:10]} 39. Bxe4 {[%emt 0:01:49]} dxe4 $11 {[%emt 0:00:22]} 40. Rxe4 {[%emt 0:00:31]} Nf3+ {[%emt 0:00:15] Pair of Knights!} 41. Kg2 $1 {[%emt 0:00:25] Dancing on a razor blade.} Bd5 {[%emt 0:00:56]} 42. Rxd5 {[%emt 0:00:12]} cxd5 $17 {[%emt 0:00:04]} 43. Re2 {[%emt 0:01:33]} (43. Qh5+ $17 Qh6 44. Qxh6+ Nxh6 45. Re8 (45. Re7+ Rf7 $17)) 43... Qf7 {[%emt 0:01:22]} 44. Qc8 $2 {[%emt 0:00:28]} (44. Qxf7+ Rxf7 45. Re6) 44... Rc6 $2 {[%emt 0:00:55]} ({Black should play} 44... d4 $19 45. Qd8 dxc3) 45. Qb8 $2 {[%emt 0:00:40][%mdl 8192]} (45. Qd8 $1 $15) 45... Re6 $2 {[%emt 0:00:49]} (45... d4 $19 {Strongly threatening ...Qd5.} 46. Re8 Rf6 47. Rh8+ Kg7) 46. Rxe6 $11 {[%emt 0:00:23]} Qxe6 {[%emt 0:00:06]} 47. Qxb7+ {[%emt 0:00:06]} Kg6 $2 {[%emt 0:00:06]} (47... Kh8 $11 {and Black stays safe.} 48. Qb8+ Kh7 49. Qa7+ Kh8 50. Qb8+ Kh7 51. Qc7+ Kh8 52. Qd8+ Kh7 53. Qc7+ Kh8 54. Qd8+ Kh7 55. Qc7+) 48. Qb6 $18 {[%emt 0:01:12]} Kf7 {[%emt 0:00:29] [#] ...Qe4 is the strong threat.} 49. h5 $2 {[%emt 0:00:45]} (49. Qxe6+ $1 $18 Kxe6 50. b5) 49... N3h4+ $11 {[%emt 0:02:06] The position is equal.} 50. gxh4 {[%emt 0:00:48][%mdl 4096] Endgame And now Qxe6+ would win. KQB-KQN} Qe4+ {[%emt 0:00:04]} 51. Kh2 {[%emt 0:00:41][%csl Gh5][%cal Rb6g6]} Qe5+ {[%emt 0:00:26]} 52. Kg1 {[%emt 0:00:34][%csl Gh5][%cal Rb6g6]} Qe1+ {[%emt 0:00:09]} 53. Kh2 {[%emt 0:00:27][%csl Gh5][%cal Rb6g6]} Qe5+ $1 {[%emt 0:00:29]} 54. Kg2 {[%emt 0:00:30][%csl Gh5][%cal Rb6g6]} Qe4+ {[%emt 0:00:13]} 55. Kf1 {[%emt 0:00:05][%csl Gh5][%cal Rb6g6]} Qb1+ {[%emt 0:00:40] White used his chance.  Weighted Error Value: White=0.47/Black=0.46} 1/2-1/2

[Event "1000GM 0003 GM Norm 2022"]
[Site "Saint Louis"]
[Date "2022.09.23"]
[Round "5.3"]
[White "Stearman, Josiah"]
[Black "Chandra, Akshat"]
[Result "0-1"]
[ECO "A28"]
[WhiteElo "2387"]
[BlackElo "2471"]
[Annotator "TA"]
[PlyCount "60"]
[EventDate "2022.09.21"]
[EventType "tourn"]
[EventCountry "USA"]
[SourceTitle "playchess.com"]
[Source "ChessBase"]
[SourceQuality "1"]
[TimeControl "5400+30"]

{[%evp 9,60,0,0,0,0,0,0,-11,-3,-6,4,-12,-12,-13,0,0,0,-39,0,-83,-80,-81,-35,-83,-50,-67,-22,-33,-35,-144,-145,-153,-145,-116,-123,-176,-176,-182,-183,-184,-179,-158,-154,-247,-245,-280,-273,-904,-873,-807,-800,-800,-770]} 1. c4 {[%emt 0:03:11]} e5 {[%emt 0:02:25]} 2. Nc3 {[%emt 0:00:05]} Nf6 {[%emt 0:00:13]} 3. Nf3 {[%emt 0:00:14]} Nc6 {[%emt 0:00:27]} 4. e4 {[%emt 0:00:05]} d6 {[%emt 0:03:38]} 5. h3 {[%emt 0:05:16]} g6 {[%emt 0:03:04]} 6. d4 {[%emt 0:07:56] A28: English Opening: Four Knights Variation.} exd4 {[%emt 0:01:00]} 7. Nxd4 {[%emt 0:00:10]} Bg7 {[%emt 0:00:06][%cal Of6e4]} 8. Nxc6 {[%emt 0:09:44] The position is equal.} (8. Bg5 {looks sharper.} O-O 9. Nxc6 bxc6 10. Bd3) 8... bxc6 {[%emt 0:00:04]} 9. Bd3 {[%emt 0:00:55]} O-O {[%emt 0:00:24]} 10. O-O {[%emt 0:00:06]} Nd7 {[%emt 0:03:52]} 11. Be3 {[%emt 0:06:07] [#]} Nc5 $146 {[%emt 0:12:48]} ({Predecessor:} 11... Ne5 12. Be2 c5 13. Qd2 Rb8 14. Rae1 Bb7 15. Bg5 Qd7 16. f4 Nc6 17. e5 Nd4 {1-0 (32) Meskovs,N (2550)-Lagarde,M (2625) Athens 2021}) 12. Bxc5 {[%emt 0:03:06]} dxc5 {[%emt 0:00:07]} 13. Qc2 {[%emt 0:03:22]} Qh4 {[%emt 0:05:43][%cal Oc8h3]} 14. Rfe1 {[%emt 0:09:08]} (14. Rad1 $11 {keeps the balance.}) 14... Bd4 $17 {[%emt 0:06:58]} 15. e5 {[%emt 0:01:24]} Qg5 {[%emt 0:04:43]} (15... f5 $17) 16. Be4 {[%emt 0:07:57]} (16. Qc1 $15 Qh4 17. Qd2) 16... Bxh3 {[%emt 0:02:12] ...Rab8 is the strong threat.} 17. Bxc6 {[%emt 0:01:08]} Rad8 {[%emt 0:02:19]} 18. Nb5 {[%emt 0:01:28][%csl LRa7,LRc7]} Be6 {[%emt 0:29:49] This bishop pair is nice.} 19. Qe2 {[%emt 0:16:58]} (19. Nxd4 $15 cxd4 20. Rad1) 19... Bg4 {[%emt 0:06:23]} 20. Bf3 {[%emt 0:00:15]} Bxf3 {[%emt 0:00:03]} 21. Qxf3 {[%emt 0:00:04]} Bxb2 {[%emt 0:00:28]} 22. Rad1 {[%emt 0:00:21]} (22. Rab1 $17 Bxe5 23. Nxa7) 22... Bxe5 $19 {[%emt 0:05:32]} 23. Rxd8 {[%emt 0:03:27]} Rxd8 {[%emt 0:00:06]} 24. Nxa7 {[%emt 0:00:02]} Rd2 {[%emt 0:00:47]} 25. Nc6 {[%emt 0:00:16]} Bd4 $40 {[%emt 0:03:35][%mdl 128] Black goes for the king. Black is more active.} 26. Re8+ {[%emt 0:05:09]} (26. Nxd4 $17 cxd4 27. a4) 26... Kg7 {[%emt 0:00:04]} 27. Re7 {[%emt 0:00:06]} Qf6 {[%emt 0:02:42]} ({Weaker is} 27... Bxf2+ 28. Kf1 Kh6 29. Re2 $17 (29. Qxf7 Rd1+ 30. Kxf2 Qh4+ 31. Kf3 Rf1+ 32. Ke3 Qg5+ 33. Kd3 Rd1+ 34. Ke4 Qxg2+ 35. Ke3 Qd2+ 36. Kf3 Rf1+ 37. Ke4 Qc2+ 38. Ke5 Rf5+ 39. Ke6 Qxc4+ 40. Kd7 Rxf7 $19)) ({Not} 27... Rxf2 28. Rxf7+ Kh8 29. Rf8+ Kg7 30. Rf7+ Kh8 31. Rf8+ Kg7 32. Rf7+ $11) 28. Nxd4 {[%emt 0:01:25] [#]} (28. Qxf6+ Kxf6 29. Re4) 28... Qxe7 {[%emt 0:01:10] Black is clearly winning.} 29. Nc6 {[%emt 0:00:59]} Qe1+ {[%emt 0:00:41]} 30. Kh2 {[%emt 0:00:01]} Rxf2 {[%emt 0:00:17] Weighted Error Value: White=0.47/Black=0.11 (very precise)} 0-1

[Event "1000GM 0003 GM Norm 2022"]
[Site "Saint Louis"]
[Date "2022.09.23"]
[Round "5.4"]
[White "Tugstumur, Yesuntumur"]
[Black "Kaliksteyn, Alexander"]
[Result "1/2-1/2"]
[ECO "A06"]
[WhiteElo "2375"]
[BlackElo "2393"]
[Annotator "TA"]
[PlyCount "84"]
[EventDate "2022.09.21"]
[EventType "tourn"]
[EventCountry "USA"]
[SourceTitle "playchess.com"]
[Source "ChessBase"]
[SourceQuality "1"]
[TimeControl "5400+30"]

{[%evp 9,84,6,16,6,18,6,10,21,11,7,35,31,38,33,33,27,38,40,54,21,26,17,47,53,56,7,7,0,0,-2,-11,-27,-8,-19,0,0,0,0,0,-22,0,-34,0,0,26,26,49,0,0,0,0,0,0,0,0,0,0,0,0,0,0,0,0,0,14,14,29,29,29,0,0,0,0,0,24,0,0]} 1. Nf3 {[%emt 0:00:06]} d5 {[%emt 0:00:14]} 2. b3 {[%emt 0:00:11]} c5 {[%emt 0:03:01]} 3. Bb2 {[%emt 0:00:05]} Nc6 {[%emt 0:00:28]} 4. e3 {[%emt 0:00:04]} a6 {[%emt 0:00:09]} 5. g3 {[%emt 0:04:03] [#]} Qd6 $146 {[%emt 0:15:53]} ({Predecessor:} 5... Bf5 6. Bg2 Nf6 7. O-O e6 8. Nh4 Be4 9. f3 Bg6 10. d3 Bd6 11. Nxg6 hxg6 12. f4 Qe7 {0-1 (42) Nakamura,H (2760)-Fedoseev,V (2686) Chess.com INT 2022}) 6. d4 {[%emt 0:04:34] Inhibits e5. A06: Réti Opening: 1 Nf3 d5.} cxd4 {[%emt 0:00:33]} 7. Nxd4 {[%emt 0:00:11]} Nf6 {[%emt 0:01:09]} 8. Bg2 {[%emt 0:02:34]} Bg4 {[%emt 0:03:38]} 9. Qd2 {[%emt 0:07:55]} Ne4 {[%emt 0:04:34]} (9... e5 $5 {[%cal Re5d4]} 10. Nxc6 bxc6 $11) 10. Qc1 {[%emt 0:02:45]} Nxd4 {[%emt 0:09:24]} 11. exd4 {[%emt 0:00:30]} h5 {[%emt 0:01:35]} 12. Qe3 {[%emt 0:05:03] f3 is the strong threat.} Bf5 {[%emt 0:04:56]} 13. c4 {[%emt 0:03:18]} Nf6 {[%emt 0:25:56]} 14. Ba3 {[%emt 0:13:29]} Qd7 {[%emt 0:05:38]} 15. O-O {[%emt 0:17:46]} e6 {[%emt 0:00:31]} 16. Bxf8 {[%emt 0:00:21]} Kxf8 {[%emt 0:00:07]} 17. Nc3 {[%emt 0:00:46]} (17. h4 $14 {is more appropriate.}) 17... h4 $11 {[%emt 0:07:33]} 18. Na4 {[%emt 0:08:40] [#] aiming for Nb6.} Rd8 {[%emt 0:00:27]} 19. cxd5 Nxd5 20. Qe5 {[%emt 0:04:34]} hxg3 {[%emt 0:05:43]} 21. fxg3 {[%emt 0:00:52]} f6 {[%emt 0:00:04]} 22. Qe1 {[%emt 0:00:34]} b6 {[%emt 0:01:09] Against Nc5} 23. Rd1 {[%emt 0:01:05]} Kf7 {[%emt 0:01:42]} 24. Rf2 {[%emt 0:02:57]} Rb8 {[%emt 0:01:50]} 25. Nc3 {[%emt 0:01:39]} Nxc3 {[%emt 0:00:24]} (25... Bg4 $5 {[%cal Rd5c3]} 26. Rc1 Nxc3 27. Rxc3 (27. Qxc3 Rbc8 $11) 27... Rbc8 $11) 26. Qxc3 {[%emt 0:00:03]} Rhd8 {[%emt 0:00:54]} 27. d5 {[%emt 0:01:47] [#] Threatens to win with dxe6+.} Rbc8 {[%emt 0:01:18]} 28. Qe3 {[%emt 0:06:16]} (28. Qf3 $1 $14 {should be considered.} Kg8 29. Re1) 28... exd5 {[%emt 0:01:06]} 29. Rxd5 {[%emt 0:01:18]} Qe6 {[%emt 0:01:57]} 30. Qd2 {[%emt 0:03:35]} Rc2 {[%emt 0:00:12]} 31. Qxc2 {[%emt 0:00:52]} Bxc2 {[%emt 0:00:25]} 32. Rxd8 {[%emt 0:00:01] Hoping for Bd5.} Qe1+ {[%emt 0:01:52]} 33. Bf1 {[%emt 0:00:04]} Bb1 {[%emt 0:00:47]} 34. Rd7+ {[%emt 0:01:19]} Kg6 {[%emt 0:00:08]} 35. Rdd2 {[%emt 0:01:58]} a5 {[%emt 0:00:23]} 36. h4 {[%emt 0:00:28]} Qe3 {[%emt 0:00:51]} 37. Kh2 {[%emt 0:00:10]} Be4 {[%emt 0:00:39]} 38. Rfe2 {[%emt 0:00:44]} Qc3 {[%emt 0:00:08]} (38... Qf3 $2 39. Bg2 Qg4 40. Rxe4 $18) 39. Rf2 {[%emt 0:00:32]} (39. Bg2 $5 {[%cal Rg2e4]} Bxg2 40. Rxg2 $14) 39... Qe3 {[%emt 0:00:12]} 40. Rde2 {[%emt 0:01:21]} Qc5 {[%emt 0:00:12]} 41. Bh3 {[%emt 0:00:56]} Kh6 {[%emt 0:00:29]} 42. Rf4 {[%emt 0:00:52]} f5 {[%emt 0:00:41] Weighted Error Value: White=0.08 (flawless) /Black=0.08 (flawless)} 1/2-1/2

[Event "1000GM 0003 GM Norm 2022"]
[Site "Saint Louis"]
[Date "2022.09.23"]
[Round "5.5"]
[White "Gedajlovic, Max"]
[Black "Antipov, Mikhail Al."]
[Result "0-1"]
[ECO "C50"]
[WhiteElo "2343"]
[BlackElo "2603"]
[Annotator "TA"]
[PlyCount "64"]
[EventDate "2022.09.21"]
[EventType "tourn"]
[EventCountry "USA"]
[SourceTitle "playchess.com"]
[Source "ChessBase"]
[SourceQuality "1"]
[TimeControl "5400+30"]

{[%evp 12,64,6,14,7,12,9,0,0,0,0,-12,0,-1,-8,-7,0,-24,-15,-9,-3,-75,-68,-77,-79,-83,-79,-74,-87,-85,-77,-203,-185,-217,-210,-205,-220,-254,-233,-281,-258,-277,-279,-369,-366,-377,-375,-424,-417,-474,-441,-626,-620,-618,-607]} 1. e4 {[%emt 0:04:21]} e5 {[%emt 0:01:56]} 2. Nf3 {[%emt 0:00:08]} Nc6 {[%emt 0:00:03]} 3. Bc4 {[%emt 0:00:11]} Bc5 {[%emt 0:00:04]} 4. Nc3 {[%emt 0:00:10]} Nf6 {[%emt 0:00:12]} 5. d3 {[%emt 0:00:11]} h6 {[%emt 0:00:15]} 6. O-O {[%emt 0:00:09]} d6 {[%emt 0:00:34]} 7. Na4 {[%emt 0:00:14] is more profitable than 7.h3 at the moment.} Bb6 {[%emt 0:00:05] C50: Hungarian Defence and Giuoco Pianissimo.} 8. c3 {[%emt 0:01:44]} O-O {[%emt 0:00:06]} 9. Nxb6 {[%emt 0:01:42]} axb6 {[%emt 0:00:02] The position is equal.} 10. b4 {[%emt 0:00:36]} Ne7 {[%emt 0:01:37]} 11. h3 {[%emt 0:01:27]} c6 {[%emt 0:01:09]} 12. Re1 {[%emt 0:01:01]} b5 {[%emt 0:01:29]} 13. Bb3 {[%emt 0:01:35]} Ng6 {[%emt 0:00:05] [#]} 14. c4 $146 ({Predecessor:} 14. Bd2 Qc7 15. Qc2 Nh5 16. c4 Ngf4 17. cxb5 Bxh3 18. Bxf4 Nxf4 19. gxh3 Qd7 20. Re3 Qxh3 21. Ne1 Qg4+ {½-½ (21) Sabbatini,G (2121)-Herzog,M (2095) LSS email 2016}) 14... bxc4 {[%emt 0:03:21]} 15. dxc4 {[%emt 0:02:47]} Be6 16. c5 {[%emt 0:13:09] [#]} (16. a4 $11 {keeps the balance.}) 16... dxc5 $1 $17 {[%emt 0:03:56] aiming for ...Qxd1.} 17. Qxd8 {[%emt 0:03:15]} Rfxd8 {[%emt 0:00:08]} 18. Bxe6 {[%emt 0:00:07]} fxe6 {[%emt 0:00:02]} 19. bxc5 {[%emt 0:00:13]} Ra4 {[%emt 0:01:41]} 20. Be3 {[%emt 0:16:23]} Nxe4 {[%emt 0:02:28] Black is more active.} 21. h4 {[%emt 0:04:41] [#] Now White is beyond hope.} (21. Reb1 $17 {might work better.}) 21... Nf6 $1 $19 {[%emt 0:01:12]} 22. g3 {[%emt 0:00:56]} e4 {[%emt 0:00:21]} 23. Nd2 {[%emt 0:00:35]} Ne5 {[%emt 0:00:02][%cal Od8d2] Threatens to win with ...Rxd2!} 24. Kg2 {[%emt 0:01:45]} Nd5 {[%emt 0:12:53]} 25. Nb3 {[%emt 0:01:22]} Nd3 {[%emt 0:03:18] Pair of Knights!} 26. Re2 {[%emt 0:00:30]} e5 {[%emt 0:00:18]} 27. Bd2 {[%emt 0:01:29]} Rda8 {[%emt 0:00:21]} 28. Be1 {[%emt 0:04:21]} Ra3 {[%emt 0:03:27][%cal Oa3b3] And now ...Rxb3! would win.} 29. Rd1 {[%emt 0:02:17]} R8a4 {[%emt 0:00:42]} 30. Kf1 {[%emt 0:01:10]} Rxa2 {[%emt 0:00:45] Black is clearly winning.} 31. Bd2 {[%emt 0:03:08]} (31. Rxa2 $142 Rxa2 32. Ra1) 31... Rb2 {[%emt 0:00:37]} 32. Na5 {[%emt 0:00:43]} Nxc5 {[%emt 0:00:16] Weighted Error Value: White=0.33/Black=0.02 (flawless)} 0-1